fUST/lending_fUST_20240731
["ID","MTS","AMOUNT","RATE_DAILY","PERIOD"]
[333711003,1722394239938,-617.83174885,0.00014621,2]
[333711005,1722394239947,-675.76,0.00014621,2]
[333711007,1722394239957,-500.0,0.00014621,2]
[333711009,1722394239967,-308.97168909,0.00014621,2]
[333711011,1722394239976,-500.0,0.00014621,2]
[333711013,1722394239986,-491.66901847,0.00014621,2]
[333711015,1722394239996,-500.0,0.00014624,2]
[333711017,1722394240006,-940.08,0.00014625,2]
[333711019,1722394240016,-1931.61,0.00014625,2]
[333711021,1722394240026,-500.0,0.00014625,2]
[333711023,1722394240036,-1676.0,0.00014625,2]
[333711025,1722394240047,-500.0,0.00014625,2]
[333711027,1722394240056,-500.0,0.00014625,2]
[333711030,1722394240067,-13310.37,0.00014625,2]
[333711032,1722394240076,-4534.83,0.00014625,2]
[333711034,1722394240086,-1844.04,0.00014625,2]
[333711036,1722394240097,-815.76,0.00014625,2]
[333711038,1722394240107,-1180.73,0.00014625,2]
[333711040,1722394240116,-500.0,0.00014625,2]
[333711042,1722394240126,-4451.72,0.00014625,2]
[333711044,1722394240136,-18608.2689243,0.00014625,2]
[333711046,1722394240149,-500.0,0.00014627,2]
[333711048,1722394240160,-500.0,0.00014628,2]
[333711051,1722394240170,-500.0,0.00014628,2]
[333711053,1722394240182,-500.0,0.00014629,2]
[333711055,1722394240193,-500.0,0.00014629,2]
[333711057,1722394240205,-1176.01,0.00014629,2]
[333711059,1722394240216,-500.0,0.00014629,2]
[333711062,1722394240227,-500.0,0.00014629,2]
[333711064,1722394240237,-500.0,0.00014629,2]
[333711066,1722394240248,-500.0,0.00014629,2]
[333711068,1722394240258,-224.65114976,0.00014629,2]
[333711070,1722394240269,-500.0,0.00014629,2]
[333711072,1722394240279,-500.0,0.00014629,2]
[333711074,1722394240289,-864.67,0.00014629,2]
[333711076,1722394240299,-1104.09,0.00014629,2]
[333711078,1722394240309,-534.99830934,0.00014629,2]
[333711080,1722394240319,-500.0,0.00014629,2]
[333711082,1722394240330,-500.0,0.00014629,2]
[333711085,1722394240340,-592.33,0.00014629,2]
[333711087,1722394240351,-500.0,0.00014629,2]
[333711090,1722394240361,-731.9,0.00014629,2]
[333711092,1722394240373,-500.0,0.00014629,2]
[333711094,1722394240385,-1363.98,0.00014629,2]
[333711096,1722394240398,-500.0,0.00014629,2]
[333711098,1722394240408,-573.7,0.00014629,2]
[333711100,1722394240418,-500.0,0.00014629,2]
[333711103,1722394240428,-514.28131382,0.00014629,2]
[333711104,1722394240439,-1103.89,0.00014629,2]
[333711105,1722394240449,-500.0,0.00014629,2]
[333711106,1722394240461,-1040.65,0.00014629,2]
[333711108,1722394240473,-500.0,0.00014629,2]
[333711109,1722394240484,-587.72538191,0.00014629,2]
[333711110,1722394240495,-1754.0,0.00014629,2]
[333711111,1722394240504,-500.0,0.00014629,2]
[333711112,1722394240514,-500.0,0.00014629,2]
[333711113,1722394240525,-580.87,0.00014629,2]
[333711114,1722394240535,-500.0,0.00014629,2]
[333711115,1722394240545,-500.0,0.00014629,2]
[333711117,1722394240555,-983.74,0.00014629,2]
[333711119,1722394240565,-500.0,0.00014629,2]
[333711120,1722394240574,-1020.13,0.00014629,2]
[333711123,1722394240584,-510.90225902,0.00014629,2]
[333711124,1722394240594,-500.0,0.00014629,2]
[333711127,1722394240604,-347.7811101,0.00014629,2]
[333711128,1722394240614,-934.3,0.00014629,2]
[333711131,1722394240625,-500.0,0.00014629,2]
[333711132,1722394240634,-500.0,0.00014629,2]
[333711134,1722394240644,-1411.24,0.00014629,2]
[333711136,1722394240654,-943.67,0.00014629,2]
[333711138,1722394240664,-500.0,0.00014629,2]
[333711140,1722394240674,-500.0,0.00014629,2]
[333711142,1722394240685,-2250.64,0.00014629,2]
[333711143,1722394240695,-500.0,0.00014629,2]
[333711144,1722394240705,-757.24,0.00014629,2]
[333711145,1722394240718,-500.0,0.00014629,2]
[333711146,1722394240728,-4043.2,0.00014629,2]
[333711147,1722394240741,-500.0,0.00014629,2]
[333711149,1722394240756,-504.49562737,0.00014629,2]
[333711152,1722394240766,-500.0,0.00014629,2]
[333711154,1722394240776,-500.0,0.00014629,2]
[333711156,1722394240786,-500.0,0.00014629,2]
[333711157,1722394240796,-617.95,0.00014629,2]
[333711160,1722394240806,-500.0,0.00014629,2]
[333711162,1722394240816,-725.21,0.00014629,2]
[333711164,1722394240825,-1823.69,0.00014629,2]
[333711166,1722394240835,-503.10294862,0.00014629,2]
[333711168,1722394240844,-500.0,0.00014629,2]
[333711170,1722394240854,-500.0,0.00014629,2]
[333711172,1722394240864,-500.0,0.00014629,2]
[333711174,1722394240874,-203.39669749,0.00014629,2]
[333711176,1722394240884,-9268.85,0.00014629,2]
[333711178,1722394240894,-644.76,0.00014629,2]
[333711180,1722394240904,-506.65070889,0.00014629,2]
[333711182,1722394240914,-547.25,0.00014629,2]
[333711185,1722394240925,-500.0,0.00014629,2]
[333711187,1722394240935,-768.29,0.00014629,2]
[333711189,1722394240945,-500.0,0.00014629,2]
[333711191,1722394240955,-1372.83,0.00014629,2]
[333711193,1722394240966,-513.51649892,0.00014629,2]
[333711195,1722394240976,-862.15,0.00014629,2]
[333711197,1722394240986,-1684.89,0.00014629,2]
[333711199,1722394240996,-500.0,0.00014629,2]
[333711202,1722394241006,-3661.62,0.00014629,2]
[333711205,1722394241016,-500.0,0.00014629,2]
[333711208,1722394241025,-517.92,0.00014629,2]
[333711210,1722394241035,-500.0,0.00014629,2]
[333711212,1722394241045,-500.0,0.00014629,2]
[333711214,1722394241055,-580.35,0.00014629,2]
[333711216,1722394241065,-2452.47,0.00014629,2]
[333711218,1722394241075,-1639.04,0.00014629,2]
[333711219,1722394241086,-1005.9,0.00014629,2]
[333711220,1722394241095,-500.0,0.00014629,2]
[333711221,1722394241105,-508.8,0.00014629,2]
[333711222,1722394241115,-500.0,0.00014629,2]
[333711223,1722394241125,-2058.35,0.00014629,2]
[333711224,1722394241134,-561.25,0.00014629,2]
[333711225,1722394241144,-500.0,0.00014629,2]
[333711226,1722394241153,-456.48242128,0.00014629,2]
[333711227,1722394241163,-692.41,0.00014629,2]
[333711228,1722394241172,-600.23,0.00014629,2]
[333711229,1722394241182,-500.0,0.00014629,2]
[333711230,1722394241191,-719.59,0.00014629,2]
[333711231,1722394241200,-18608.2689243,0.0001463,2]
[333711250,1722394241426,-500.0,0.00014634,2]
[333711252,1722394241439,-500.0,0.00014634,2]
[333711254,1722394241449,-500.0,0.00014634,2]
[333711256,1722394241459,-500.0,0.00014634,2]
[333711258,1722394241470,-500.0,0.00014637,2]
[333711261,1722394241481,-500.0,0.00014637,2]
[333711263,1722394241491,-500.0,0.00014638,2]
[333711265,1722394241501,-500.0,0.00014638,2]
[333711267,1722394241511,-500.0,0.00014638,2]
[333711269,1722394241520,-500.0,0.00014638,2]
[333711271,1722394241530,-500.0,0.00014638,2]
[333711273,1722394241539,-500.0,0.00014638,2]
[333711275,1722394241549,-500.0,0.00014638,2]
[333711277,1722394241559,-500.0,0.00014639,2]
[333711279,1722394241571,-500.0,0.00014639,2]
[333711280,1722394241580,-500.0,0.00014639,2]
[333711282,1722394241590,-506.44842468,0.0001464,2]
[333711284,1722394241599,-326.03432267,0.0001464,2]
[333711286,1722394241609,-502.4298814,0.0001464,2]
[333711288,1722394241620,-504.00123569,0.0001464,2]
[333711290,1722394241630,-500.0,0.0001464,2]
[333711292,1722394241639,-500.0,0.0001464,2]
[333711294,1722394241649,-500.0,0.0001464,2]
[333711296,1722394241659,-500.0,0.0001464,2]
[333711298,1722394241669,-503.64397371,0.0001464,2]
[333711300,1722394241678,-606.59,0.0001464,2]
[333711302,1722394241688,-504.80950484,0.0001464,2]
[333711304,1722394241697,-500.0,0.0001464,2]
[333711306,1722394241706,-500.0,0.0001464,2]
[333711308,1722394241716,-500.0,0.0001464,2]
[333711310,1722394241725,-500.0,0.0001464,2]
[333711312,1722394241735,-500.0,0.0001464,2]
[333711314,1722394241745,-500.0,0.0001464,2]
[333711316,1722394241754,-954.96,0.0001464,2]
[333711318,1722394241764,-500.0,0.0001464,2]
[333711320,1722394241775,-500.0,0.0001464,2]
[333711321,1722394241785,-500.0,0.0001464,2]
[333711323,1722394241796,-500.0,0.0001464,2]
[333711326,1722394241808,-500.0,0.0001464,2]
[333711327,1722394241819,-500.0,0.0001464,2]
[333711328,1722394241830,-500.0,0.0001464,2]
[333711329,1722394241840,-500.0,0.0001464,2]
[333711330,1722394241852,-500.0,0.0001464,2]
[333711331,1722394241862,-500.0,0.0001464,2]
[333711332,1722394241872,-604.92269554,0.0001464,2]
[333711333,1722394241882,-1239.16,0.0001464,2]
[333711334,1722394241893,-797.79,0.0001464,2]
[333711335,1722394241903,-500.0,0.0001464,2]
[333711336,1722394241913,-500.0,0.0001464,2]
[333711337,1722394241924,-500.0,0.0001464,2]
[333711338,1722394241934,-451.97348897,0.0001464,2]
[333711339,1722394241944,-522.17622557,0.0001464,2]
[333711340,1722394241954,-500.0,0.0001464,2]
[333711341,1722394241963,-780.96,0.0001464,2]
[333711342,1722394241972,-500.0,0.0001464,2]
[333711343,1722394241981,-500.0,0.0001464,2]
[333711344,1722394241991,-500.0,0.0001464,2]
[333711345,1722394242000,-506.42466303,0.0001464,2]
[333711346,1722394242010,-500.0,0.0001464,2]
[333711347,1722394242023,-500.0,0.0001464,2]
[333711348,1722394242033,-823.62,0.0001464,2]
[333711349,1722394242043,-500.0,0.0001464,2]
[333711350,1722394242053,-500.0,0.0001464,2]
[333711351,1722394242063,-969.58,0.0001464,2]
[333711352,1722394242073,-500.0,0.0001464,2]
[333711353,1722394242083,-500.0,0.0001464,2]
[333711354,1722394242092,-3247.06,0.0001464,2]
[333711355,1722394242102,-500.0,0.0001464,2]
[333711356,1722394242113,-1232.25,0.0001464,2]
[333711357,1722394242123,-500.0,0.0001464,2]
[333711358,1722394242132,-500.0,0.0001464,2]
[333711359,1722394242142,-500.0,0.0001464,2]
[333711360,1722394242152,-151.0,0.0001464,2]
[333711361,1722394242162,-805.31,0.0001464,2]
[333711362,1722394242172,-500.0,0.0001464,2]
[333711363,1722394242182,-500.0,0.0001464,2]
[333711364,1722394242192,-1373.83,0.0001464,2]
[333711365,1722394242201,-500.0,0.0001464,2]
[333711366,1722394242211,-500.0,0.0001464,2]
[333711367,1722394242221,-151.0,0.0001464,2]
[333711368,1722394242231,-152.080337,0.0001464,2]
[333711369,1722394242242,-151.0,0.0001464,2]
[333711371,1722394242252,-151.0,0.0001464,2]
[333711373,1722394242263,-151.0,0.0001464,2]
[333711375,1722394242274,-500.0,0.0001464,2]
[333711377,1722394242286,-151.0,0.0001464,2]
[333711379,1722394242297,-376.835067,0.0001464,2]
[333711381,1722394242307,-376.835067,0.0001464,2]
[333711383,1722394242317,-151.0,0.0001464,2]
[333711385,1722394242327,-151.0,0.0001464,2]
[333711387,1722394242337,-179.082796,0.0001464,2]
[333711389,1722394242348,-151.0,0.0001464,2]
[333711392,1722394242360,-229.143841,0.0001464,2]
[333711394,1722394242370,-500.0,0.00014642,2]
[333711396,1722394242380,-151.0,0.0001465,2]
[333711397,1722394242389,-152.892703,0.00014651,2]
[333711399,1722394242402,-151.0,0.00014652,2]
[333711401,1722394242411,-151.0,0.00014652,2]
[333711403,1722394242422,-151.0,0.00014652,2]
[333711405,1722394242431,-18608.2689243,0.00014679,2]
[333711408,1722394242443,-151.0,0.0001468,2]
[333711410,1722394242453,-151.0,0.00014689,2]
[333711412,1722394242463,-500.0,0.00014689,2]
[333711414,1722394242477,-26118.64446192,0.00014689,5]
[333711416,1722394242487,-373.35484598,0.0001469,2]
[333711418,1722394242497,-1088.05936735,0.0001469,2]
[333711452,1722394242850,-113.789958,0.00014625,2]
[333711523,1722394244002,-691.20706109,0.00014625,2]
[333711524,1722394244014,-65.53298091,0.00014625,2]
[333711525,1722394244024,-1446.49,0.00014629,2]
[333711526,1722394244035,-4924.27503891,0.0001469,2]
[333711558,1722394246672,-500.0,0.00014616,2]
[333711560,1722394246682,-1851.13,0.00014617,2]
[333711561,1722394246692,-3015.06996,0.0001469,2]
[333711568,1722394246933,-20972.59563374,0.0001469,2]
[333711569,1722394246943,-4904.28436626,0.0001469,2]
[333711571,1722394618267,165.50791686,9.999e-05,2]
[333711572,1722394639739,8127.85374671,9.999e-05,2]
[333711576,1722394856206,155.18711339,0.0001212,2]
[333711577,1722394865842,181.49424459,0.0001212,2]
[333711587,1722395100807,51771.921271,0.00014,2]
[333711599,1722395375752,194.0371065,0.00027,120]
[333711740,1722395439253,-4143.96,0.000142,2]
[333711741,1722395439266,-629.00699,0.00014247,2]
[333711742,1722395439278,-17677.8554781,0.0001458,2]
[333711743,1722395439290,-367.43442542,0.00014587,2]
[333711744,1722395439302,-500.0,0.00014587,2]
[333711745,1722395439313,-500.0,0.00014587,2]
[333711746,1722395439323,-500.0,0.00014587,2]
[333711747,1722395439333,-500.0,0.00014587,2]
[333711748,1722395439346,-500.0,0.00014587,2]
[333711749,1722395439357,-500.0,0.00014587,2]
[333711750,1722395439371,-500.0,0.00014587,2]
[333711751,1722395439381,-500.0,0.00014587,2]
[333711752,1722395439393,-500.0,0.00014587,2]
[333711753,1722395439404,-500.0,0.00014587,2]
[333711754,1722395439416,-500.0,0.00014587,2]
[333711755,1722395439427,-500.0,0.00014587,2]
[333711756,1722395439439,-500.0,0.00014587,2]
[333711757,1722395439451,-500.0,0.00014587,2]
[333711758,1722395439462,-500.0,0.00014587,2]
[333711759,1722395439474,-500.0,0.00014587,2]
[333711760,1722395439486,-500.0,0.00014587,2]
[333711761,1722395439497,-500.0,0.00014587,2]
[333711762,1722395439508,-500.0,0.00014587,2]
[333711763,1722395439520,-500.0,0.00014587,2]
[333711764,1722395439531,-500.0,0.00014587,2]
[333711765,1722395439541,-500.0,0.00014587,2]
[333711766,1722395439552,-500.0,0.00014587,2]
[333711767,1722395439562,-500.0,0.00014587,2]
[333711768,1722395439573,-500.0,0.00014587,2]
[333711769,1722395439584,-500.0,0.00014587,2]
[333711770,1722395439596,-500.0,0.00014587,2]
[333711771,1722395439607,-500.0,0.00014587,2]
[333711772,1722395439619,-500.0,0.00014587,2]
[333711773,1722395439629,-500.0,0.00014587,2]
[333711774,1722395439640,-500.0,0.00014587,2]
[333711775,1722395439651,-500.0,0.00014587,2]
[333711776,1722395439661,-500.0,0.00014587,2]
[333711777,1722395439671,-500.0,0.00014587,2]
[333711778,1722395439681,-500.0,0.00014587,2]
[333711779,1722395439692,-500.0,0.00014587,2]
[333711780,1722395439703,-500.0,0.00014587,2]
[333711781,1722395439713,-500.0,0.00014587,2]
[333711782,1722395439725,-500.0,0.00014587,2]
[333711783,1722395439736,-500.0,0.00014587,2]
[333711784,1722395439747,-500.0,0.00014587,2]
[333711785,1722395439760,-1630.7,0.00014587,2]
[333711786,1722395439772,-500.0,0.00014587,2]
[333711787,1722395439783,-7808.29,0.00014587,2]
[333711788,1722395439794,-1670.16,0.00014587,2]
[333711789,1722395439812,-1577.0,0.00014587,2]
[333711790,1722395439824,-1634.82,0.00014587,2]
[333711791,1722395439834,-500.0,0.00014587,2]
[333711792,1722395439847,-753.12,0.00014587,2]
[333711793,1722395439858,-262.932252,0.00014588,2]
[333711794,1722395439869,-230.26871726,0.00014588,2]
[333711795,1722395439881,-253.63524393,0.00014588,2]
[333711796,1722395439891,-500.0,0.00014588,2]
[333711797,1722395439901,-500.0,0.00014588,2]
[333711798,1722395439912,-492.41636455,0.00014588,2]
[333711799,1722395439922,-514.76497749,0.00014588,2]
[333711800,1722395439935,-500.0,0.00014588,2]
[333711801,1722395439947,-500.0,0.00014588,2]
[333711802,1722395439958,-500.0,0.00014588,2]
[333711803,1722395439970,-500.0,0.00014588,2]
[333711804,1722395439982,-17677.8554781,0.00014588,2]
[333711805,1722395439993,-35355.7109563,0.00014589,2]
[333711806,1722395440005,-688.22,0.00014589,2]
[333711807,1722395440015,-11213.73,0.00014589,2]
[333711808,1722395440025,-500.0,0.00014589,2]
[333711809,1722395440035,-1625.48,0.00014589,2]
[333711810,1722395440045,-1310.86,0.00014589,2]
[333711811,1722395440056,-1269.97,0.00014589,2]
[333711812,1722395440067,-981.75,0.00014589,2]
[333711813,1722395440078,-1875.32,0.00014589,2]
[333711814,1722395440088,-662.90643256,0.0001459,2]
[333711815,1722395440099,-17677.8554781,0.0001459,2]
[333711816,1722395440109,-17677.8554781,0.00014591,2]
[333711817,1722395440119,-17677.8554781,0.00014595,2]
[333711818,1722395440129,-370.6865655,0.00014598,2]
[333711819,1722395440139,-520.76660711,0.00014598,2]
[333711820,1722395440149,-1352.79,0.00014598,2]
[333711821,1722395440160,-500.0,0.00014598,2]
[333711822,1722395440171,-617.83174885,0.00014598,2]
[333711823,1722395440181,-500.0,0.00014598,2]
[333711824,1722395440191,-1190.85,0.00014598,2]
[333711825,1722395440202,-500.0,0.00014598,2]
[333711826,1722395440212,-1696.84,0.00014598,2]
[333711827,1722395440222,-500.0,0.00014598,2]
[333711828,1722395440232,-500.0,0.00014598,2]
[333711829,1722395440244,-500.0,0.00014598,2]
[333711830,1722395440255,-1957.98,0.00014598,2]
[333711831,1722395440266,-13382.11,0.00014598,2]
[333711832,1722395440276,-3237.09,0.00014598,2]
[333711833,1722395440286,-4561.14,0.00014598,2]
[333711834,1722395440296,-1564.74,0.00014598,2]
[333711835,1722395440307,-1864.87,0.00014598,2]
[333711836,1722395440317,-500.0,0.00014598,2]
[333711837,1722395440327,-794.51,0.00014598,2]
[333711838,1722395440339,-500.0,0.00014598,2]
[333711839,1722395440351,-500.0,0.00014598,2]
[333711840,1722395440362,-815.76,0.00014598,2]
[333711841,1722395440373,-1256.57,0.00014598,2]
[333711842,1722395440383,-500.0,0.00014598,2]
[333711843,1722395440394,-1192.93,0.00014598,2]
[333711844,1722395440405,-575.19,0.00014598,2]
[333711845,1722395440415,-500.0,0.00014598,2]
[333711846,1722395440425,-4472.55,0.00014598,2]
[333711847,1722395440436,-871.88,0.00014598,2]
[333711848,1722395440449,-791.49,0.00014598,2]
[333711849,1722395440462,-834.26,0.00014598,2]
[333711850,1722395440472,-538.11,0.00014598,2]
[333711851,1722395440483,-1411.24,0.00014598,2]
[333711852,1722395440493,-500.0,0.00014598,2]
[333711853,1722395440503,-500.0,0.00014598,2]
[333711854,1722395440514,-500.0,0.00014598,2]
[333711855,1722395440523,-513.21634924,0.00014599,2]
[333711856,1722395440534,-500.0,0.00014599,2]
[333711857,1722395440544,-185.18861223,0.00014599,2]
[333711858,1722395440554,-500.0,0.00014599,2]
[333711859,1722395440565,-1196.85,0.00014599,2]
[333711860,1722395440575,-507.64212273,0.00014599,2]
[333711861,1722395440585,-500.0,0.00014599,2]
[333711862,1722395440596,-500.0,0.00014599,2]
[333711863,1722395440608,-500.0,0.00014599,2]
[333711864,1722395440619,-500.0,0.00014599,2]
[333711865,1722395440630,-500.0,0.00014599,2]
[333711866,1722395440640,-500.0,0.00014599,2]
[333711867,1722395440650,-224.65114976,0.00014599,2]
[333711868,1722395440661,-500.0,0.00014599,2]
[333711869,1722395440671,-500.0,0.00014599,2]
[333711870,1722395440682,-535.22408806,0.00014599,2]
[333711872,1722395440692,-888.86,0.00014599,2]
[333711874,1722395440702,-500.0,0.00014599,2]
[333711876,1722395440712,-1124.92,0.00014599,2]
[333711878,1722395440723,-500.0,0.00014599,2]
[333711880,1722395440734,-534.99830934,0.00014599,2]
[333711882,1722395440744,-500.0,0.00014599,2]
[333711884,1722395440755,-500.0,0.00014599,2]
[333711886,1722395440768,-502.75,0.00014599,2]
[333711888,1722395440778,-500.0,0.00014599,2]
[333711891,1722395440788,-500.0,0.00014599,2]
[333711893,1722395440800,-209.64958809,0.00014599,2]
[333711895,1722395440811,-613.17,0.00014599,2]
[333711897,1722395440822,-500.0,0.00014599,2]
[333711899,1722395440832,-752.74,0.00014599,2]
[333711901,1722395440843,-500.0,0.00014599,2]
[333711903,1722395440854,-500.0,0.00014599,2]
[333711905,1722395440864,-1384.81,0.00014599,2]
[333711908,1722395440876,-500.0,0.00014599,2]
[333711910,1722395440887,-594.53,0.00014599,2]
[333711912,1722395440898,-500.0,0.00014599,2]
[333711914,1722395440908,-500.0,0.00014599,2]
[333711916,1722395440918,-514.28131382,0.00014599,2]
[333711918,1722395440930,-500.0,0.00014599,2]
[333711921,1722395440943,-540.4,0.00014599,2]
[333711923,1722395440955,-500.0,0.00014599,2]
[333711925,1722395440966,-764.33,0.00014599,2]
[333711928,1722395440977,-1061.48,0.00014599,2]
[333711930,1722395440987,-500.0,0.00014599,2]
[333711932,1722395440998,-619.57,0.00014599,2]
[333711934,1722395441009,-500.0,0.00014599,2]
[333711936,1722395441019,-500.0,0.00014599,2]
[333711938,1722395441030,-500.0,0.00014599,2]
[333711940,1722395441040,-500.0,0.00014599,2]
[333711942,1722395441050,-587.72538191,0.00014599,2]
[333711944,1722395441060,-1774.83,0.00014599,2]
[333711946,1722395441071,-500.0,0.00014599,2]
[333711948,1722395441081,-500.0,0.00014599,2]
[333711951,1722395441091,-601.7,0.00014599,2]
[333711953,1722395441102,-500.0,0.00014599,2]
[333711955,1722395441112,-675.76,0.00014599,2]
[333711957,1722395441123,-500.0,0.00014599,2]
[333711959,1722395441133,-308.97168909,0.00014599,2]
[333711961,1722395441143,-1009.04,0.00014599,2]
[333711963,1722395441154,-500.0,0.00014599,2]
[333711965,1722395441164,-1040.97,0.00014599,2]
[333711967,1722395441174,-510.90225902,0.00014599,2]
[333711970,1722395441185,-491.66901847,0.00014599,2]
[333711972,1722395441195,-500.0,0.00014599,2]
[333711974,1722395441206,-326.03432267,0.00014599,2]
[333711976,1722395441216,-506.44842468,0.00014599,2]
[333711978,1722395441226,-347.7811101,0.00014599,2]
[333711980,1722395441238,-502.4298814,0.00014599,2]
[333711982,1722395441248,-504.00123569,0.00014599,2]
[333711984,1722395441261,-500.0,0.00014599,2]
[333711987,1722395441272,-955.14,0.00014599,2]
[333711989,1722395441286,-500.0,0.00014599,2]
[333711991,1722395441296,-500.0,0.00014599,2]
[333711993,1722395441307,-964.5,0.00014599,2]
[333711995,1722395441318,-500.0,0.00014599,2]
[333711997,1722395441329,-500.0,0.00014599,2]
[333711999,1722395441339,-500.0,0.00014599,2]
[333712001,1722395441350,-500.0,0.00014599,2]
[333712003,1722395441360,-500.0,0.00014599,2]
[333712006,1722395441370,-500.0,0.00014599,2]
[333712008,1722395441380,-516.65,0.00014599,2]
[333712010,1722395441390,-500.0,0.00014599,2]
[333712012,1722395441400,-2255.54,0.00014599,2]
[333712014,1722395441410,-504.49562737,0.00014599,2]
[333712016,1722395441421,-757.24,0.00014599,2]
[333712018,1722395441432,-500.0,0.00014599,2]
[333712020,1722395441443,-503.64397371,0.00014599,2]
[333712022,1722395441455,-500.0,0.00014599,2]
[333712047,1722395441687,-4043.2,0.00014599,2]
[333712050,1722395441700,-1844.52,0.00014599,2]
[333712051,1722395441710,-500.0,0.00014599,2]
[333712054,1722395441720,-500.0,0.00014599,2]
[333712056,1722395441730,-627.42,0.00014599,2]
[333712058,1722395441740,-768.29,0.00014599,2]
[333712060,1722395441750,-503.10294862,0.00014599,2]
[333712062,1722395441761,-203.39669749,0.00014599,2]
[333712064,1722395441772,-504.80950484,0.00014599,2]
[333712066,1722395441782,-500.0,0.00014599,2]
[333712068,1722395441795,-500.0,0.00014599,2]
[333712070,1722395441809,-506.65070889,0.00014599,2]
[333712072,1722395441819,-500.0,0.00014599,2]
[333712074,1722395441829,-638.79,0.00014599,2]
[333712076,1722395441838,-500.0,0.00014599,2]
[333712078,1722395441848,-500.0,0.00014599,2]
[333712080,1722395441858,-500.0,0.00014599,2]
[333712082,1722395441868,-547.25,0.00014599,2]
[333712084,1722395441878,-747.75,0.00014599,2]
[333712086,1722395441887,-517.92,0.00014599,2]
[333712088,1722395441896,-500.0,0.00014599,2]
[333712089,1722395441905,-500.0,0.00014599,2]
[333712091,1722395441914,-513.51649892,0.00014599,2]
[333712094,1722395441926,-718.45,0.00014599,2]
[333712096,1722395441935,-644.76,0.00014599,2]
[333712098,1722395441945,-500.0,0.00014599,2]
[333712100,1722395441954,-975.8,0.00014599,2]
[333712102,1722395441964,-500.0,0.00014599,2]
[333712104,1722395441974,-500.0,0.00014599,2]
[333712106,1722395441984,-500.0,0.00014599,2]
[333712108,1722395441994,-500.0,0.00014599,2]
[333712110,1722395442004,-580.35,0.00014599,2]
[333712112,1722395442017,-1372.83,0.00014599,2]
[333712114,1722395442026,-500.0,0.00014599,2]
[333712116,1722395442035,-2473.3,0.00014599,2]
[333712118,1722395442044,-500.0,0.00014599,2]
[333712120,1722395442054,-1705.72,0.00014599,2]
[333712122,1722395442065,-500.0,0.00014599,2]
[333712124,1722395442075,-3682.46,0.00014599,2]
[333712126,1722395442084,-500.0,0.00014599,2]
[333712128,1722395442093,-500.0,0.00014599,2]
[333712130,1722395442103,-2058.35,0.00014599,2]
[333712132,1722395442113,-500.0,0.00014599,2]
[333712134,1722395442123,-500.0,0.00014599,2]
[333712136,1722395442133,-1663.25,0.00014599,2]
[333712138,1722395442143,-561.25,0.00014599,2]
[333712140,1722395442152,-500.0,0.00014599,2]
[333712142,1722395442162,-5000.0,0.000146,2]
[333712144,1722395442172,-21133.98883708,0.000146,2]
[333712165,1722395442363,-6986.23838379,0.000146,2]
[333712167,1722395442375,-15634.85446989,0.000146,2]